[Event "WSCC 65 Open 2017"]
[Site "?"]
[Date "2017.11.10"]
[Round "4"]
[White "Malmdin, Nils-Ake"]
[Black "Povah, Nigel E"]
[Result "0-1"]
[ECO "B48"]
[WhiteElo "2223"]
[BlackElo "2295"]
[PlyCount "82"]
[EventDate "2017.??.??"]
[EventType "swiss"]
[EventCountry "ITA"]
[SourceTitle "Acqui Terme"]
[TimeControl "40/5400+30:1800+30"]
[WhiteClock "0:02:42"]
[BlackClock "0:03:10"]

1. e4 {[%emt 0:00:00]} c5 {[%emt 0:00:06]} 2. Nf3 {[%emt 0:00:11]} Nc6 {[%emt 0:00:05]} 3. Nc3 {[%emt 0:00:30]} e6 {[%emt 0:00:09]} 4. d4 {[%emt 0:00:15]} cxd4 {[%emt 0:00:04]} 5. Nxd4 {[%emt 0:00:12]} Qc7 {[%emt 0:00:17]} 6. Be3 {[%emt 0:00:50]} a6 {[%emt 0:00:09]} 7. Bd3 {[%emt 0:00:58]} b5 {[%emt 0:00:37]} 8. Nxc6 {[%emt 0:00:28]} Qxc6 {[%emt 0:00:06]} 9. O-O {[%emt 0:00:20]} Nf6 {[%emt 0:00:40]} 10. f3 {[%emt 0:05:01]} Bc5 {[%emt 0:02:09]} 11. Qe2 {[%emt 0:03:16]} d6 {[%emt 0:03:20]} 12. Kh1 {[%emt 0:01:16]} Bxe3 {[%emt 0:00:58]} 13. Qxe3 {[%emt 0:00:10]} O-O {[%emt 0:03:40]} 14. a4 {[%emt 0:06:13]} b4 {[%emt 0:01:54]} 15. Ne2 {[%emt 0:01:42]} Bb7 {[%emt 0:08:11]} 16. Qd2 {[%emt 0:08:25]} Qc5 {[%emt 0:10:28]} 17. Rfc1 {[%emt 0:05:13]} d5 {[%emt 0:09:05]} 18. e5 {[%emt 0:02:56]} Ne4 {[%emt 0:03:52]} 19. fxe4 {[%emt 0:11:08]} dxe4 {[%emt 0:00:09]} 20. Bxa6 {[%emt 0:00:41]} Bxa6 {[%emt 0:01:21]} 21. Qd4 {[%emt 0:00:28]} Qxd4 {[%emt 0:12:01]} 22. Nxd4 {[%emt 0:00:12]} Rfc8 {[%emt 0:00:19]} 23. Kg1 {[%emt 0:14:07]} Rc5 {[%emt 0:07:25]} 24. Kf2 {[%emt 0:03:47]} Bb7 {[%emt 0:04:19]} 25. Ke3 {[%emt 0:03:46]} Rxe5 {[%emt 0:00:47]} 26. c3 {[%emt 0:00:25]} bxc3 {[%emt 0:13:34]} 27. Rxc3 {[%emt 0:05:31]} g5 {[%emt 0:01:45]} 28. Rc7 {[%emt 0:02:55]} Rb8 {[%emt 0:05:18]} 29. b4 {[%emt 0:00:35]} Rd5 {[%emt 0:02:26]} 30. Ra3 {[%emt 0:00:59]} Ba8 {[%emt 0:02:56]} 31. b5 {[%emt 0:00:50]} f5 {[%emt 0:01:14]} 32. Nxe6 {[%emt 0:02:06]} f4+ {[%emt 0:00:17]} 33. Ke2 {[%emt 0:00:34]} e3 {[%emt 0:02:25]} 34. Rd3 {[%emt 0:08:39]} Rxd3 {[%emt 0:01:46]} 35. Kxd3 {[%emt 0:00:09]} Bxg2 {[%emt 0:00:11]} 36. Rg7+ {[%emt 0:02:57]} Kh8 {[%emt 0:00:06]} 37. Rxg5 {[%emt 0:01:18]} Bf1+ {[%emt 0:00:30]} 38. Kd4 {[%emt 0:02:27]} e2 {[%emt 0:00:45]} 39. Re5 {[%emt 0:00:11]} f3 {[%emt 0:00:27]} 40. Ng5 {[%emt 0:05:56]} f2 {[%emt 0:31:27]} 41. Nf3 {[%emt 0:30:11]} Rf8 {[%emt 0:00:32]} 0-1

[Event "WSCC 65 Open 2017"]
[Site "?"]
[Date "2017.11.11"]
[Round "5"]
[White "Komljenovic, Davorin"]
[Black "Gutkin, Boris"]
[Result "0-1"]
[ECO "A05"]
[WhiteElo "2379"]
[BlackElo "2250"]
[PlyCount "104"]
[EventDate "2017.??.??"]
[EventType "swiss"]
[EventCountry "ITA"]
[SourceTitle "Acqui Terme"]
[TimeControl "40/5400+30:1800+30"]
[WhiteClock "0:31:13"]
[BlackClock "0:30:15"]

1. Nf3 {[%emt 0:00:14]} Nf6 {[%emt 0:00:25]} 2. g3 {[%emt 0:00:20]} g6 {[%emt 0:00:39]} 3. b3 {[%emt 0:00:04]} Bg7 {[%emt 0:00:25]} 4. Bb2 {[%emt 0:00:04]} d6 {[%emt 0:02:57]} 5. d4 {[%emt 0:00:34]} O-O {[%emt 0:01:08]} 6. Bg2 {[%emt 0:00:10]} Nc6 {[%emt 0:11:45]} 7. d5 {[%emt 0:00:17]} Nb4 {[%emt 0:00:57]} 8. c4 {[%emt 0:01:02]} a5 {[%emt 0:00:34]} 9. a3 {[%emt 0:02:34]} Na6 {[%emt 0:00:10]} 10. Nd4 {[%emt 0:21:38]} Bd7 {[%emt 0:03:14]} 11. Nc3 {[%emt 0:14:33]} Qc8 {[%emt 0:15:19]} 12. h3 {[%emt 0:00:11]} Nc5 {[%emt 0:02:42]} 13. b4 {[%emt 0:07:34]} axb4 {[%emt 0:05:19]} 14. axb4 {[%emt 0:00:06]} Rxa1 {[%emt 0:01:39]} 15. Qxa1 {[%emt 0:00:03]} Na6 {[%emt 0:07:21]} 16. Qa5 {[%emt 0:00:11]} c5 {[%emt 0:15:53]} 17. dxc6 {[%emt 0:00:24]} bxc6 {[%emt 0:00:06]} 18. b5 {[%emt 0:06:56]} cxb5 {[%emt 0:05:23]} 19. cxb5 {[%emt 0:00:02]} Nb8 {[%emt 0:01:50]} 20. Qb6 {[%emt 0:07:47]} d5 {[%emt 0:08:16]} 21. Bxd5 {[%emt 0:13:23]} Bxh3 {[%emt 0:01:11]} 22. Bf3 {[%emt 0:01:18]} e5 {[%emt 0:07:53]} 23. Nc6 {[%emt 0:00:31]} Nxc6 {[%emt 0:00:23]} 24. Qxc6 Qf5 {[%emt 0:01:54]} 25. Ne4 {[%emt 0:02:21]} Rc8 {[%emt 0:02:05]} 26. Nxf6+ {[%emt 0:04:08]} Bxf6 {[%emt 0:00:24]} 27. Qe4 {[%emt 0:03:46]} Rc2 {[%emt 0:01:02]} 28. Ba3 {[%emt 0:02:33]} Rc3 {[%emt 0:00:43]} 29. Bb4 {[%emt 0:01:32]} Qxe4 {[%emt 0:01:04]} 30. Bxe4 {[%emt 0:00:08]} Rc4 {[%emt 0:00:04]} 31. Bd2 {[%emt 0:02:14]} Rxe4 {[%emt 0:00:21]} 32. Rxh3 {[%emt 0:00:04]} Ra4 {[%emt 0:00:14]} 33. Kd1 {[%emt 0:00:39]} e4 {[%emt 0:01:04]} 34. Be3 {[%emt 0:02:13]} Rb4 {[%emt 0:00:52]} 35. b6 {[%emt 0:01:25]} Bd8 {[%emt 0:00:20]} 36. Kd2 {[%emt 0:00:38]} Bxb6 {[%emt 0:00:40]} 37. Bxb6 {[%emt 0:00:06]} Rxb6 {[%emt 0:00:08]} 38. Ke3 {[%emt 0:00:06]} f5 {[%emt 0:00:52]} 39. f3 {[%emt 0:02:11]} Rb3+ {[%emt 0:00:34]} 40. Kf4 {[%emt 0:00:41]} Rb4 {[%emt 0:30:31]} 41. fxe4 {[%emt 0:33:44]} Rxe4+ {[%emt 0:00:09]} 42. Kf3 {[%emt 0:00:00]} Kg7 {[%emt 0:00:41]} 43. Rh1 {[%emt 0:00:30]} h5 {[%emt 0:00:38]} 44. Ra1 {[%emt 0:00:15]} Kf6 {[%emt 0:00:18]} 45. Ra8 {[%emt 0:00:12]} Kg5 {[%emt 0:00:29]} 46. Rg8 {[%emt 0:00:09]} Ra4 {[%emt 0:00:46]} 47. Rg7 {[%emt 0:00:35]} Ra3+ {[%emt 0:00:45]} 48. Kf2 {[%emt 0:00:20]} Ra6 {[%emt 0:00:22]} 49. Kf3 {[%emt 0:00:06]} Ra3+ {[%emt 0:01:21]} 50. Kf2 {[%emt 0:00:09]} Ra4 {[%emt 0:00:16]} 51. Kf3 {[%emt 0:00:56]} f4 {[%emt 0:00:00]} 52. Rf7 {[%emt 0:00:00]} Ra3+ 0-1

[Event "WSCC 65 Open 2017"]
[Site "?"]
[Date "2017.11.11"]
[Round "5"]
[White "Pushkov, Nikolai"]
[Black "Sprotte, Norbert"]
[Result "1-0"]
[ECO "A57"]
[WhiteElo "2304"]
[BlackElo "2186"]
[PlyCount "53"]
[EventDate "2017.??.??"]
[EventType "swiss"]
[EventCountry "ITA"]
[SourceTitle "Acqui Terme"]
[TimeControl "40/5400+30:1800+30"]
[WhiteClock "0:58:05"]
[BlackClock "0:23:37"]

1. d4 {[%emt 0:00:00]} Nf6 {[%emt 0:00:32]} 2. c4 {[%emt 0:00:08]} c5 {[%emt 0:01:12]} 3. d5 {[%emt 0:00:18]} b5 {[%emt 0:00:45]} 4. cxb5 {[%emt 0:00:30]} a6 {[%emt 0:00:18]} 5. b6 {[%emt 0:00:08]} d6 {[%emt 0:00:56]} 6. Nc3 {[%emt 0:00:03]} g6 {[%emt 0:01:23]} 7. e4 {[%emt 0:00:26]} Qxb6 {[%emt 0:03:47]} 8. Nf3 {[%emt 0:01:57]} Nbd7 {[%emt 0:03:40]} 9. a4 {[%emt 0:00:51]} Bg7 {[%emt 0:01:18]} 10. a5 {[%emt 0:00:48]} Qb7 {[%emt 0:06:07]} 11. Be2 {[%emt 0:02:36]} O-O {[%emt 0:00:20]} 12. O-O {[%emt 0:00:09]} Ne8 {[%emt 0:07:59]} 13. Nd2 {[%emt 0:06:25]} Nc7 {[%emt 0:01:04]} 14. Nc4 {[%emt 0:00:15]} Nb5 {[%emt 0:02:15]} 15. Na4 {[%emt 0:00:51]} Nd4 {[%emt 0:08:58]} 16. Nab6 {[%emt 0:01:02]} Nxb6 {[%emt 0:04:43]} 17. Nxb6 {[%emt 0:00:17]} Nxe2+ {[%emt 0:04:26]} 18. Qxe2 {[%emt 0:00:03]} Bd7 {[%emt 0:00:39]} 19. Re1 {[%emt 0:02:30]} Bb5 {[%emt 0:01:06]} 20. Qc2 {[%emt 0:00:04]} Rad8 {[%emt 0:05:33]} 21. Be3 {[%emt 0:02:22]} f5 {[%emt 0:06:23]} 22. exf5 {[%emt 0:01:29]} Rxf5 {[%emt 0:01:51]} 23. Rad1 {[%emt 0:01:28]} Rdf8 {[%emt 0:02:14]} 24. b3 {[%emt 0:00:47]} Be5 {[%emt 0:03:33]} 25. Qd2 {[%emt 0:02:21]} e6 {[%emt 0:03:22]} 26. dxe6 {[%emt 0:07:26]} Qe7 {[%emt 0:05:29]} 27. f4 {[%emt 0:10:11]} 1-0

[Event "WSCC 65 Open 2017"]
[Site "?"]
[Date "2017.11.11"]
[Round "5"]
[White "Povah, Nigel E"]
[Black "Malisov, Boris"]
[Result "1/2-1/2"]
[ECO "A43"]
[WhiteElo "2295"]
[BlackElo "2240"]
[PlyCount "53"]
[EventDate "2017.??.??"]
[EventType "swiss"]
[EventCountry "ITA"]
[SourceTitle "Acqui Terme"]
[TimeControl "40/5400+30:1800+30"]
[WhiteClock "0:06:11"]
[BlackClock "0:17:07"]

1. d4 {[%emt 0:00:00]} c5 {[%emt 0:00:27]} 2. d5 {[%emt 0:00:00]} Nf6 {[%emt 0:00:09]} 3. Bg5 {[%emt 0:00:00]} Ne4 {[%emt 0:01:21]} 4. Bf4 {[%emt 0:00:04]} Qb6 {[%emt 0:01:13]} 5. Nd2 {[%emt 0:00:34]} Nxd2 {[%emt 0:00:58]} 6. Bxd2 {[%emt 0:00:11]} d6 {[%emt 0:01:16]} 7. e4 {[%emt 0:04:33]} Nd7 {[%emt 0:01:08]} 8. Bc3 {[%emt 0:10:44]} Nf6 {[%emt 0:00:41]} 9. Qd3 {[%emt 0:11:58]} g6 {[%emt 0:03:02]} 10. Nf3 {[%emt 0:03:13]} Bg7 {[%emt 0:01:48]} 11. Nd2 {[%emt 0:03:19]} O-O {[%emt 0:00:29]} 12. Be2 {[%emt 0:02:54]} Qc7 {[%emt 0:07:19]} 13. f4 {[%emt 0:17:55]} Rb8 {[%emt 0:02:04]} 14. a4 {[%emt 0:00:10]} b6 {[%emt 0:04:17]} 15. O-O {[%emt 0:06:56]} a6 {[%emt 0:01:27]} 16. e5 {[%emt 0:06:45]} Ne8 {[%emt 0:04:24]} 17. Qe3 {[%emt 0:05:49]} b5 {[%emt 0:08:16]} 18. axb5 {[%emt 0:00:47]} axb5 {[%emt 0:00:02]} 19. b3 {[%emt 0:00:09]} Bb7 {[%emt 0:15:04]} 20. Bf3 {[%emt 0:03:34]} Ra8 {[%emt 0:06:23]} 21. Rxa8 {[%emt 0:03:38]} Bxa8 {[%emt 0:00:02]} 22. Ra1 {[%emt 0:02:25]} Bb7 {[%emt 0:00:48]} 23. g3 {[%emt 0:01:56]} Qb8 {[%emt 0:11:37]} 24. exd6 {[%emt 0:05:31]} Bxc3 {[%emt 0:08:37]} 25. Qxc3 {[%emt 0:00:17]} Nxd6 {[%emt 0:00:59]} 26. Qe3 {[%emt 0:03:06]} Qc7 {[%emt 0:02:32]} 27. c4 {[%emt 0:00:51]} 1/2-1/2

[Event "WSCC 65 Open 2017"]
[Site "?"]
[Date "2017.11.11"]
[Round "5"]
[White "Boehnisch, Manfred"]
[Black "Privara, Igor"]
[Result "1/2-1/2"]
[ECO "A05"]
[WhiteElo "2285"]
[BlackElo "2184"]
[PlyCount "35"]
[EventDate "2017.??.??"]
[EventType "swiss"]
[EventCountry "ITA"]
[SourceTitle "Acqui Terme"]
[TimeControl "40/5400+30:1800+30"]
[WhiteClock "0:34:51"]
[BlackClock "0:49:30"]

1. Nf3 {[%emt 0:00:31]} Nf6 {[%emt 0:00:32]} 2. d4 {[%emt 0:00:37]} e6 {[%emt 0:00:33]} 3. c4 {[%emt 0:00:52]} c5 {[%emt 0:00:54]} 4. e3 {[%emt 0:01:09]} d5 {[%emt 0:00:07]} 5. Nc3 {[%emt 0:01:23]} a6 {[%emt 0:00:18]} 6. cxd5 {[%emt 0:07:14]} exd5 {[%emt 0:00:26]} 7. dxc5 {[%emt 0:01:59]} Bxc5 {[%emt 0:00:37]} 8. Be2 {[%emt 0:00:53]} O-O {[%emt 0:01:57]} 9. O-O {[%emt 0:00:18]} Nc6 {[%emt 0:02:18]} 10. a3 {[%emt 0:06:04]} Re8 {[%emt 0:03:31]} 11. b4 {[%emt 0:01:56]} Ba7 {[%emt 0:04:33]} 12. Bb2 {[%emt 0:00:59]} h6 {[%emt 0:07:34]} 13. Rc1 {[%emt 0:01:10]} Be6 {[%emt 0:04:01]} 14. Na4 {[%emt 0:04:28]} Ne4 {[%emt 0:02:09]} 15. Nd4 {[%emt 0:17:44]} Bd7 {[%emt 0:11:54]} 16. Nc5 {[%emt 0:03:22]} Nxc5 {[%emt 0:07:39]} 17. bxc5 {[%emt 0:00:08]} Qe7 {[%emt 0:00:27]} 18. Nxc6 {[%emt 0:13:22]} 1/2-1/2

[Event "WSCC 65 Open 2017"]
[Site "?"]
[Date "2017.11.11"]
[Round "5"]
[White "Hardicsay, Peter"]
[Black "Vogt, Lothar"]
[Result "0-1"]
[ECO "B52"]
[WhiteElo "2213"]
[BlackElo "2398"]
[PlyCount "70"]
[EventDate "2017.??.??"]
[EventType "swiss"]
[EventCountry "ITA"]
[SourceTitle "Acqui Terme"]
[TimeControl "40/5400+30:1800+30"]
[WhiteClock "0:02:15"]
[BlackClock "0:19:16"]

1. e4 {[%emt 0:00:00]} c5 {[%emt 0:00:13]} 2. Nf3 {[%emt 0:00:00]} d6 {[%emt 0:00:51]} 3. Bb5+ {[%emt 0:01:13]} Bd7 {[%emt 0:00:04]} 4. Bxd7+ {[%emt 0:00:40]} Qxd7 {[%emt 0:00:04]} 5. c4 {[%emt 0:00:39]} Nf6 {[%emt 0:02:08]} 6. Nc3 {[%emt 0:03:29]} g6 {[%emt 0:00:12]} 7. O-O {[%emt 0:03:43]} Nc6 {[%emt 0:01:31]} 8. d3 {[%emt 0:03:12]} Bg7 {[%emt 0:00:13]} 9. h3 {[%emt 0:01:20]} O-O {[%emt 0:00:58]} 10. a3 {[%emt 0:00:19]} Ne8 11. Be3 {[%emt 0:09:05]} Nd4 {[%emt 0:08:24]} 12. Rb1 {[%emt 0:04:25]} Nc7 13. Bxd4 {[%emt 0:08:25]} cxd4 {[%emt 0:02:22]} 14. Nd5 {[%emt 0:01:06]} Na6 {[%emt 0:07:47]} 15. b4 {[%emt 0:10:15]} e6 {[%emt 0:02:02]} 16. Nf4 {[%emt 0:03:11]} Bh6 {[%emt 0:01:55]} 17. Ne2 {[%emt 0:00:22]} e5 {[%emt 0:00:02]} 18. Ng3 {[%emt 0:13:58]} Nc7 {[%emt 0:02:22]} 19. Nh2 {[%emt 0:03:29]} Ne6 {[%emt 0:05:08]} 20. Qg4 {[%emt 0:07:49]} Kh8 {[%emt 0:04:02]} 21. b5 {[%emt 0:01:36]} a6 {[%emt 0:08:17]} 22. a4 {[%emt 0:00:08]} axb5 {[%emt 0:00:55]} 23. axb5 {[%emt 0:00:07]} Ra3 {[%emt 0:00:48]} 24. Rbd1 {[%emt 0:00:54]} Rfa8 {[%emt 0:04:56]} 25. Ne2 {[%emt 0:02:05]} Qe7 {[%emt 0:03:07]} 26. g3 {[%emt 0:04:08]} Nc5 {[%emt 0:01:22]} 27. Qf3 {[%emt 0:00:31]} Qe6 {[%emt 0:03:34]} 28. Kg2 {[%emt 0:00:49]} f5 {[%emt 0:01:52]} 29. exf5 {[%emt 0:02:48]} Qxf5 {[%emt 0:02:27]} 30. Qd5 {[%emt 0:04:02]} Rxd3 {[%emt 0:16:24]} 31. Rxd3 {[%emt 0:04:28]} Qxd3 {[%emt 0:00:04]} 32. Qxd6 {[%emt 0:00:56]} Ne4 {[%emt 0:00:43]} 33. Qd5 {[%emt 0:04:04]} Qxe2 {[%emt 0:00:24]} 34. Ng4 {[%emt 0:01:07]} Rf8 {[%emt 0:03:12]} 35. Qxe5+ {[%emt 0:00:52]} Bg7 {[%emt 0:00:21]} 0-1

[Event "WSCC 65 Open 2017"]
[Site "?"]
[Date "2017.11.11"]
[Round "5"]
[White "Haubt, Georg"]
[Black "Lisenko, Alexander V"]
[Result "0-1"]
[ECO "A45"]
[WhiteElo "2195"]
[BlackElo "2372"]
[PlyCount "84"]
[EventDate "2017.??.??"]
[EventType "swiss"]
[EventCountry "ITA"]
[SourceTitle "Acqui Terme"]
[TimeControl "40/5400+30:1800+30"]

1. d4 Nf6 2. Bg5 d5 3. e3 c6 4. Nd2 Bf5 5. Bxf6 exf6 6. c4 Qb6 7. Qb3 Bb4 8. Ngf3 dxc4 9. Bxc4 O-O 10. a3 Bd6 11. e4 Qxb3 12. Bxb3 Re8 13. O-O-O Bxe4 14. Rhe1 Bf4 15. g3 Bh6 16. Bc2 f5 17. Nh4 Na6 18. Nxf5 Bxf5 19. Bxf5 g6 20. Bc2 Rad8 21. Rxe8+ Rxe8 22. f4 Re2 23. Nf3 Rf2 24. Ne5 Rxh2 25. Bb3 Rh3 26. Bxf7+ Kg7 27. Be6 Rxg3 28. Bc8 Bxf4+ 29. Kb1 Bxe5 30. dxe5 Nc5 31. b4 Rd3 32. Re1 Rd8 33. Bh3 Na4 34. Kc2 Nb6 35. e6 Nd5 36. Kb3 Re8 37. Re4 Kf6 38. Kc4 g5 39. b5 Nf4 40. bxc6 bxc6 41. Bf1 Rxe6 42. Rd4 Re1 0-1

[Event "WSCC 65 Open 2017"]
[Site "?"]
[Date "2017.11.11"]
[Round "5"]
[White "Trois, Francisco R T"]
[Black "Rooze, Jan"]
[Result "1/2-1/2"]
[ECO "A04"]
[WhiteElo "2184"]
[BlackElo "2314"]
[PlyCount "68"]
[EventDate "2017.??.??"]
[EventType "swiss"]
[EventCountry "ITA"]
[SourceTitle "Acqui Terme"]
[TimeControl "40/5400+30:1800+30"]
[WhiteClock "0:24:10"]
[BlackClock "0:10:27"]

1. Nf3 {[%emt 0:00:00]} c5 {[%emt 0:01:08]} 2. g3 {[%emt 0:03:59]} b6 {[%emt 0:00:12]} 3. Bg2 {[%emt 0:00:14]} Bb7 {[%emt 0:00:05]} 4. c4 {[%emt 0:00:57]} Nf6 {[%emt 0:00:19]} 5. O-O {[%emt 0:01:31]} g6 {[%emt 0:03:24]} 6. Nc3 {[%emt 0:04:13]} Bg7 {[%emt 0:01:26]} 7. d4 {[%emt 0:00:07]} cxd4 {[%emt 0:00:06]} 8. Qxd4 {[%emt 0:00:07]} d6 {[%emt 0:00:55]} 9. Qh4 {[%emt 0:00:40]} Nbd7 {[%emt 0:07:31]} 10. Bh6 {[%emt 0:00:52]} O-O {[%emt 0:06:12]} 11. Rfd1 {[%emt 0:01:46]} Rc8 {[%emt 0:04:38]} 12. Bxg7 {[%emt 0:10:33]} Kxg7 {[%emt 0:00:57]} 13. Rac1 {[%emt 0:01:28]} a6 {[%emt 0:03:40]} 14. Qd4 {[%emt 0:05:44]} Qc7 {[%emt 0:06:55]} 15. b3 {[%emt 0:00:51]} Kg8 {[%emt 0:00:42]} 16. Qe3 {[%emt 0:01:53]} Qd8 {[%emt 0:22:51]} 17. Nd5 {[%emt 0:06:18]} Nxd5 {[%emt 0:03:34]} 18. cxd5 {[%emt 0:00:03]} Rxc1 {[%emt 0:00:19]} 19. Qxc1 {[%emt 0:01:39]} Nf6 {[%emt 0:01:30]} 20. Nd4 {[%emt 0:06:38]} Nxd5 {[%emt 0:02:40]} 21. Nc6 {[%emt 0:00:19]} Bxc6 {[%emt 0:00:11]} 22. Qxc6 {[%emt 0:00:03]} Nf6 {[%emt 0:01:16]} 23. Qb7 {[%emt 0:01:28]} a5 {[%emt 0:03:24]} 24. Rc1 {[%emt 0:00:11]} Nd7 {[%emt 0:00:28]} 25. Rc7 {[%emt 0:00:57]} Nc5 {[%emt 0:02:43]} 26. Qxb6 {[%emt 0:05:19]} Ne6 {[%emt 0:01:39]} 27. Rc6 {[%emt 0:11:51]} Qxb6 {[%emt 0:00:14]} 28. Rxb6 {[%emt 0:00:02]} Rc8 {[%emt 0:00:07]} 29. Rb5 {[%emt 0:05:54]} a4 {[%emt 0:06:44]} 30. bxa4 {[%emt 0:00:49]} Rc1+ {[%emt 0:00:15]} 31. Bf1 {[%emt 0:00:08]} Rc2 {[%emt 0:00:11]} 32. a5 {[%emt 0:05:15]} Rxa2 {[%emt 0:00:09]} 33. e3 {[%emt 0:00:10]} Kg7 {[%emt 0:01:16]} 34. Rb7 {[%emt 0:00:51]} Rxa5 {[%emt 0:09:22]} 1/2-1/2

[Event "WSCC 65 Open 2017"]
[Site "?"]
[Date "2017.11.12"]
[Round "6"]
[White "Vasiukov, Evgeni"]
[Black "Hjertenes, Oystein"]
[Result "1-0"]
[ECO "B06"]
[WhiteElo "2404"]
[BlackElo "2007"]
[PlyCount "109"]
[EventDate "2017.??.??"]
[EventType "swiss"]
[EventCountry "ITA"]
[SourceTitle "Acqui Terme"]
[TimeControl "40/5400+30:1800+30"]
[WhiteClock "0:39:14"]
[BlackClock "0:20:39"]

1. e4 {[%emt 0:00:00]} g6 {[%emt 0:00:17]} 2. d4 Bg7 {[%emt 0:00:43]} 3. c4 {[%emt 0:01:57]} d6 {[%emt 0:00:57]} 4. Nc3 {[%emt 0:00:09]} Nd7 5. Be3 {[%emt 0:04:33]} c6 {[%emt 0:04:36]} 6. h4 {[%emt 0:03:35]} h5 {[%emt 0:01:36]} 7. Nh3 {[%emt 0:08:20]} e5 {[%emt 0:01:38]} 8. d5 {[%emt 0:00:48]} c5 {[%emt 0:01:50]} 9. Ng5 {[%emt 0:01:39]} Ndf6 {[%emt 0:06:09]} 10. f3 {[%emt 0:00:53]} a6 {[%emt 0:05:52]} 11. Be2 {[%emt 0:09:42]} Bd7 {[%emt 0:05:56]} 12. a3 {[%emt 0:03:25]} Ne7 {[%emt 0:05:01]} 13. b4 {[%emt 0:02:03]} b6 {[%emt 0:00:44]} 14. Rb1 {[%emt 0:00:39]} O-O {[%emt 0:10:24]} 15. Qb3 {[%emt 0:06:46]} Qc8 {[%emt 0:07:16]} 16. Kd2 {[%emt 0:05:12]} Rd8 {[%emt 0:02:50]} 17. Rbg1 {[%emt 0:03:56]} Kf8 {[%emt 0:03:39]} 18. b5 {[%emt 0:06:51]} Neg8 {[%emt 0:07:29]} 19. Nh3 {[%emt 0:02:42]} axb5 {[%emt 0:07:06]} 20. cxb5 {[%emt 0:00:15]} Qb7 {[%emt 0:02:02]} 21. Nf2 {[%emt 0:02:08]} Bh6 {[%emt 0:06:08]} 22. Bxh6+ {[%emt 0:00:50]} Nxh6 {[%emt 0:00:11]} 23. g4 {[%emt 0:00:16]} Nhg8 {[%emt 0:00:25]} 24. Nfd1 {[%emt 0:02:43]} Qa7 {[%emt 0:00:31]} 25. g5 {[%emt 0:00:52]} Ne8 {[%emt 0:00:59]} 26. a4 {[%emt 0:00:11]} Qa5 {[%emt 0:00:32]} 27. Nb2 {[%emt 0:00:46]} Bc8 {[%emt 0:02:16]} 28. Nc4 {[%emt 0:00:20]} Qa7 {[%emt 0:00:24]} 29. Rf1 {[%emt 0:04:39]} Rd7 {[%emt 0:03:22]} 30. f4 {[%emt 0:00:20]} exf4 {[%emt 0:00:33]} 31. Rxf4 {[%emt 0:00:02]} Re7 {[%emt 0:01:04]} 32. Rhf1 {[%emt 0:00:46]} Qb8 {[%emt 0:00:29]} 33. Qd1 {[%emt 0:03:19]} Raa7 {[%emt 0:01:20]} 34. Bd3 {[%emt 0:00:40]} Bg4 {[%emt 0:01:15]} 35. Qe1 {[%emt 0:02:05]} Rab7 {[%emt 0:01:47]} 36. a5 {[%emt 0:04:31]} bxa5 {[%emt 0:05:52]} 37. Nxa5 {[%emt 0:01:13]} c4 {[%emt 0:00:35]} 38. Nc6 {[%emt 0:02:09]} Qc8 {[%emt 0:01:06]} 39. Nxe7 {[%emt 0:02:01]} Rxe7 {[%emt 0:00:15]} 40. Qf2 {[%emt 0:00:35]} f6 {[%emt 0:31:49]} 41. gxf6 {[%emt 0:31:02]} Rf7 {[%emt 0:02:34]} 42. Bc2 {[%emt 0:00:44]} Ngxf6 {[%emt 0:00:56]} 43. Qd4 {[%emt 0:00:25]} Kg7 {[%emt 0:00:00]} 44. e5 {[%emt 0:00:00]} dxe5 {[%emt 0:00:00]} 45. Qxe5 {[%emt 0:00:00]} Qc5 {[%emt 0:00:00]} 46. Rxf6 {[%emt 0:00:00]} Nxf6 {[%emt 0:00:00]} 47. Rxf6 {[%emt 0:00:00]} Rxf6 {[%emt 0:00:00]} 48. Qxf6+ {[%emt 0:00:00]} Kxf6 {[%emt 0:00:00]} 49. Ne4+ {[%emt 0:00:00]} Ke5 {[%emt 0:00:00]} 50. Nxc5 {[%emt 0:00:00]} Kxd5 {[%emt 0:00:00]} 51. b6 {[%emt 0:00:00]} Bc8 {[%emt 0:00:00]} 52. b7 {[%emt 0:00:00]} Bxb7 {[%emt 0:00:00]} 53. Nxb7 {[%emt 0:00:00]} Kc6 {[%emt 0:00:00]} 54. Nd8+ {[%emt 0:00:00]} Kd7 {[%emt 0:00:00]} 55. Nf7 {[%emt 0:00:00]} 1-0

[Event "WSCC 65 Open 2017"]
[Site "?"]
[Date "2017.11.12"]
[Round "6"]
[White "Vogt, Lothar"]
[Black "Primbetov, Marat"]
[Result "1/2-1/2"]
[ECO "B22"]
[WhiteElo "2398"]
[BlackElo "2222"]
[PlyCount "53"]
[EventDate "2017.??.??"]
[EventType "swiss"]
[EventCountry "ITA"]
[SourceTitle "Acqui Terme"]
[TimeControl "40/5400+30:1800+30"]
[WhiteClock "0:44:16"]
[BlackClock "0:32:10"]

1. e4 {[%emt 0:00:00]} c5 {[%emt 0:00:32]} 2. c3 Nf6 {[%emt 0:00:46]} 3. e5 {[%emt 0:00:00]} Nd5 {[%emt 0:00:08]} 4. Nf3 {[%emt 0:00:00]} Nc6 {[%emt 0:01:24]} 5. Bc4 {[%emt 0:00:00]} Nb6 {[%emt 0:00:28]} 6. Bb3 d5 7. exd6 {[%emt 0:04:21]} e6 {[%emt 0:05:35]} 8. d4 {[%emt 0:03:47]} Bxd6 {[%emt 0:02:02]} 9. dxc5 {[%emt 0:05:15]} Bxc5 {[%emt 0:01:04]} 10. Qxd8+ {[%emt 0:00:03]} Nxd8 {[%emt 0:00:26]} 11. Nbd2 {[%emt 0:03:19]} Be7 {[%emt 0:12:35]} 12. O-O {[%emt 0:03:24]} Nd7 {[%emt 0:09:36]} 13. Ne4 {[%emt 0:08:50]} Nc5 {[%emt 0:01:27]} 14. Bc2 {[%emt 0:01:49]} Bd7 {[%emt 0:11:20]} 15. Ne5 {[%emt 0:04:21]} Bb5 {[%emt 0:08:55]} 16. c4 {[%emt 0:04:07]} Ba6 {[%emt 0:05:36]} 17. b3 {[%emt 0:04:33]} Rc8 {[%emt 0:01:21]} 18. Be3 {[%emt 0:04:08]} f6 {[%emt 0:01:04]} 19. Nxc5 {[%emt 0:01:40]} Bxc5 {[%emt 0:00:02]} 20. Bxc5 {[%emt 0:00:22]} Rxc5 {[%emt 0:00:01]} 21. Nd3 {[%emt 0:00:15]} Rc7 {[%emt 0:01:35]} 22. Nb4 {[%emt 0:02:34]} Nc6 {[%emt 0:00:09]} 23. Nxa6 {[%emt 0:01:00]} bxa6 {[%emt 0:00:01]} 24. Rfd1 {[%emt 0:01:20]} Ke7 {[%emt 0:00:38]} 25. f4 {[%emt 0:00:56]} a5 {[%emt 0:00:20]} 26. Be4 {[%emt 0:02:54]} a4 {[%emt 0:04:15]} 27. Bxc6 {[%emt 0:00:16]} 1/2-1/2